[Event "ESTCC 65 2019"]
[Site "Mali Losinj"]
[Date "2019.09.20"]
[Round "3.11"]
[White "Staechelin, Ruedi"]
[Black "Van de Wynkele, Herman"]
[Result "1-0"]
[ECO "B06"]
[WhiteElo "2002"]
[BlackElo "2085"]
[Annotator "NA"]
[PlyCount "69"]
[EventDate "2019.09.18"]
[EventType "team-tourn"]
[EventCountry "CRO"]
[SourceTitle "playchess.com"]
[Source "ChessBase"]
[SourceQuality "1"]
[WhiteTeam "Switzerland"]
[BlackTeam "Belgium"]
[WhiteTeamCountry "SUI"]
[BlackTeamCountry "BEL"]
[TimeControl "40/5400+30:1800+30"]

1. e4 {[%emt 0:00:30]} g6 {[%emt 0:00:30]} 2. d4 {[%emt 0:00:30]} Bg7 {[%emt 0:00:00]} 3. Nc3 {[%emt 0:00:30]} c6 {[%emt 0:01:00]} 4. Nf3 {[%emt 0:02:30]} d6 {[%emt 0:00:30]} 5. h3 {[%emt 0:01:30]} b5 {[%emt 0:01:30]} 6. Be3 {[%emt 0:04:30]} Bb7 {[%emt 0:00:30]} 7. Bd3 {[%emt 0:01:30]} a6 {[%emt 0:01:30]} 8. Qd2 {[%emt 0:03:30]} Nd7 {[%emt 0:00:30]} 9. Ne2 {[%emt 0:02:30]} d5 {[%emt 0:08:30]} 10. e5 {[%emt 0:05:30]} c5 {[%emt 0:03:30]} 11. c3 {[%emt 0:00:00]} c4 {[%emt 0:09:30]} 12. Bc2 {[%emt 0:01:00]} Qb6 {[%emt 0:04:30]} 13. O-O {[%emt 0:05:30]} h6 {[%emt 0:08:30]} 14. a4 {[%emt 0:10:30]} e6 {[%emt 0:00:30]} 15. axb5 {[%emt 0:00:30]} axb5 {[%emt 0:00:30]} 16. Rxa8+ {[%emt 0:00:30]} Bxa8 {[%emt 0:00:00]} 17. Ra1 {[%emt 0:02:30]} Bb7 {[%emt 0:00:00]} 18. b4 {[%emt 0:02:30]} cxb3 {[%emt 0:01:30]} 19. Bxb3 {[%emt 0:03:30]} Ne7 {[%emt 0:00:00]} 20. Bc2 {[%emt 0:03:30]} Nf5 {[%emt 0:03:00]} 21. Bf4 {[%emt 0:00:30]} g5 {[%emt 0:02:30]} 22. Bh2 {[%emt 0:00:30]} O-O {[%emt 0:03:30]} 23. g4 {[%emt 0:00:30]} Ne7 {[%emt 0:03:30]} 24. h4 {[%emt 0:01:30]} gxh4 {[%emt 0:06:30]} 25. Nxh4 {[%emt 0:02:30]} f6 {[%emt 0:08:30]} 26. Qd3 {[%emt 0:14:30]} Ra8 {[%emt 0:02:30]} 27. Qh7+ {[%emt 0:01:30]} Kf8 {[%emt 0:00:00]} 28. Rxa8+ {[%emt 0:06:30]} Bxa8 {[%emt 0:00:00]} 29. Nf4 {[%emt 0:04:01]} fxe5 {[%emt 0:08:30]} 30. Nfg6+ {[%emt 0:04:36]} Kf7 {[%emt 0:03:30]} 31. Bxe5 {[%emt 0:03:04]} Nf6 {[%emt 0:04:00]} 32. Bxf6 {[%emt 0:02:07]} Kxf6 {[%emt 0:00:02]} 33. Nxe7 {[%emt 0:00:19]} Qd8 {[%emt 0:02:14]} 34. Ng8+ {[%emt 0:01:01]} Kf7 {[%emt 0:00:13]} 35. Nxh6+ {[%emt 0:00:17]} 1-0

[Event "ESTCC 65 2019"]
[Site "Mali Losinj"]
[Date "2019.09.20"]
[Round "3.12"]
[White "Schrickx, Frank"]
[Black "Illi, Hans-Joerg"]
[Result "1/2-1/2"]
[ECO "C10"]
[WhiteElo "1813"]
[BlackElo "1987"]
[Annotator "NA"]
[PlyCount "85"]
[EventDate "2019.09.18"]
[EventType "team-tourn"]
[EventCountry "CRO"]
[SourceTitle "playchess.com"]
[Source "ChessBase"]
[SourceQuality "1"]
[WhiteTeam "Belgium"]
[BlackTeam "Switzerland"]
[WhiteTeamCountry "BEL"]
[BlackTeamCountry "SUI"]
[TimeControl "40/5400+30:1800+30"]

1. e4 {[%emt 0:00:30]} e6 {[%emt 0:00:30]} 2. d4 {[%emt 0:00:00]} d5 {[%emt 0:00:30]} 3. Nc3 {[%emt 0:00:00]} dxe4 {[%emt 0:01:30]} 4. Nxe4 {[%emt 0:00:30]} Bd7 {[%emt 0:00:30]} 5. Nf3 {[%emt 0:01:30]} Bc6 {[%emt 0:00:30]} 6. Bd3 {[%emt 0:01:30]} Be7 {[%emt 0:01:30]} 7. O-O {[%emt 0:03:30]} Nf6 {[%emt 0:01:30]} 8. Nxf6+ {[%emt 0:01:30]} Bxf6 {[%emt 0:00:30]} 9. c3 {[%emt 0:01:30]} O-O {[%emt 0:05:30]} 10. Qe2 {[%emt 0:04:30]} Bxf3 {[%emt 0:01:30]} 11. Qxf3 {[%emt 0:00:30]} c6 {[%emt 0:01:30]} 12. Qe4 {[%emt 0:05:30]} g6 {[%emt 0:01:30]} 13. Bh6 {[%emt 0:01:30]} Re8 {[%emt 0:03:30]} 14. Rfe1 {[%emt 0:04:30]} Qb6 {[%emt 0:11:30]} 15. Qf3 {[%emt 0:05:30]} Nd7 {[%emt 0:10:30]} 16. Re2 {[%emt 0:07:30]} Bg7 {[%emt 0:04:30]} 17. Bxg7 {[%emt 0:00:30]} Kxg7 {[%emt 0:00:30]} 18. Rae1 {[%emt 0:05:30]} Rad8 {[%emt 0:08:30]} 19. b4 {[%emt 0:02:30]} a5 {[%emt 0:04:30]} 20. a3 {[%emt 0:00:30]} Ra8 {[%emt 0:01:30]} 21. h4 {[%emt 0:00:30]} h5 {[%emt 0:03:30]} 22. g4 {[%emt 0:06:30]} Rh8 {[%emt 0:11:30]} 23. g5 {[%emt 0:04:30]} Rhe8 {[%emt 0:01:30]} 24. Bb1 {[%emt 0:01:30]} axb4 {[%emt 0:00:30]} 25. axb4 {[%emt 0:00:30]} Ra3 {[%emt 0:01:30]} 26. Re3 {[%emt 0:00:30]} Nf8 {[%emt 0:02:30]} 27. Qf6+ {[%emt 0:09:30]} Kg8 {[%emt 0:00:30]} 28. Rf3 {[%emt 0:02:30]} Qc7 {[%emt 0:01:27]} 29. Rfe3 {[%emt 0:01:30]} Qe7 {[%emt 0:02:29]} 30. Qf3 {[%emt 0:02:30]} Rd8 {[%emt 0:03:14]} 31. Qe2 {[%emt 0:03:30]} Rd5 {[%emt 0:03:21]} 32. Qb2 {[%emt 0:01:30]} Ra8 {[%emt 0:00:21]} 33. Be4 {[%emt 0:00:30]} Rb5 {[%emt 0:00:53]} 34. Qc2 {[%emt 0:02:30]} Kg7 {[%emt 0:02:29]} 35. Rf3 {[%emt 0:00:57]} Nd7 {[%emt 0:00:22]} 36. Bd3 {[%emt 0:01:35]} Rd5 {[%emt 0:01:13]} 37. Rfe3 {[%emt 0:03:29]} Nf8 {[%emt 0:01:48]} 38. Qe2 {[%emt 0:03:53]} Rdd8 {[%emt 0:01:19]} 39. f4 {[%emt 0:00:44]} Qd6 {[%emt 0:01:17]} 40. Qf3 {[%emt 0:02:05]} Ra3 {[%emt 0:01:51]} 41. Be4 {[%emt 0:32:27]} Ra2 {[%emt 0:30:51]} 42. R3e2 {[%emt 0:02:27]} Rda8 {[%emt 0:02:34]} 43. Kg2 {[%emt 0:00:00]} 1/2-1/2

[Event "ESTCC 65 2019"]
[Site "Mali Losinj"]
[Date "2019.09.20"]
[Round "3.13"]
[White "Lofgren, Claes"]
[Black "Grahn, Lars"]
[Result "1/2-1/2"]
[ECO "A88"]
[WhiteElo "2059"]
[BlackElo "2024"]
[Annotator "NA"]
[PlyCount "61"]
[EventDate "2019.09.18"]
[EventType "team-tourn"]
[EventCountry "CRO"]
[SourceTitle "playchess.com"]
[Source "ChessBase"]
[SourceQuality "1"]
[WhiteTeam "Denmark"]
[BlackTeam "Sweden"]
[WhiteTeamCountry "DEN"]
[BlackTeamCountry "SWE"]
[TimeControl "40/5400+30:1800+30"]

1. d4 {[%emt 0:00:30]} f5 {[%emt 0:00:30]} 2. Nf3 {[%emt 0:00:30]} Nf6 {[%emt 0:00:00]} 3. c4 {[%emt 0:00:30]} g6 {[%emt 0:00:00]} 4. g3 {[%emt 0:00:30]} Bg7 {[%emt 0:00:00]} 5. Bg2 {[%emt 0:00:30]} O-O {[%emt 0:00:00]} 6. O-O {[%emt 0:00:30]} d6 {[%emt 0:00:30]} 7. Nc3 {[%emt 0:00:30]} c6 {[%emt 0:00:00]} 8. d5 {[%emt 0:03:30]} e5 {[%emt 0:00:00]} 9. dxe6 {[%emt 0:09:30]} Bxe6 {[%emt 0:00:30]} 10. Bf4 {[%emt 0:02:30]} Bxc4 {[%emt 0:00:30]} 11. Bxd6 {[%emt 0:03:30]} Re8 {[%emt 0:01:30]} 12. Qd4 {[%emt 0:06:30]} Ba6 {[%emt 0:18:30]} 13. Bxb8 {[%emt 0:29:30]} Qxb8 {[%emt 0:02:30]} 14. Qa4 {[%emt 0:01:30]} h6 {[%emt 0:10:30]} 15. Nd4 {[%emt 0:02:30]} Qc8 {[%emt 0:10:30]} 16. Rfd1 {[%emt 0:00:30]} Ne4 {[%emt 0:05:30]} 17. Nxe4 {[%emt 0:02:30]} fxe4 {[%emt 0:00:00]} 18. e3 {[%emt 0:03:30]} Bd3 {[%emt 0:06:00]} 19. Rd2 {[%emt 0:03:30]} Kh7 {[%emt 0:10:30]} 20. Ne2 {[%emt 0:02:30]} g5 {[%emt 0:05:30]} 21. Nc1 {[%emt 0:04:30]} b5 {[%emt 0:04:30]} 22. Qd1 {[%emt 0:00:30]} Bc4 {[%emt 0:01:30]} 23. Rd7 {[%emt 0:02:10]} Bd5 {[%emt 0:00:30]} 24. Bh3 {[%emt 0:00:24]} Qb8 {[%emt 0:02:30]} 25. Qd4 {[%emt 0:03:59]} Qe5 {[%emt 0:00:45]} 26. Ne2 {[%emt 0:00:49]} Kh8 {[%emt 0:02:26]} 27. Qxe5 {[%emt 0:01:54]} Bxe5 {[%emt 0:00:26]} 28. Nc3 {[%emt 0:00:41]} Bxc3 {[%emt 0:01:46]} 29. bxc3 {[%emt 0:00:02]} Rf8 {[%emt 0:00:57]} 30. a4 {[%emt 0:01:13]} a6 {[%emt 0:01:58]} 31. Bf1 {[%emt 0:00:36]} 1/2-1/2

[Event "ESTCC 65 2019"]
[Site "Mali Losinj"]
[Date "2019.09.20"]
[Round "3.14"]
[White "Wademark, Helge"]
[Black "Nielsen, Jorgen Lovgren"]
[Result "0-1"]
[ECO "C58"]
[WhiteElo "1994"]
[BlackElo "2052"]
[Annotator "NA"]
[PlyCount "62"]
[EventDate "2019.09.18"]
[EventType "team-tourn"]
[EventCountry "CRO"]
[SourceTitle "playchess.com"]
[Source "ChessBase"]
[SourceQuality "1"]
[WhiteTeam "Sweden"]
[BlackTeam "Denmark"]
[WhiteTeamCountry "SWE"]
[BlackTeamCountry "DEN"]
[TimeControl "40/5400+30:1800+30"]

1. e4 {[%emt 0:00:30]} e5 {[%emt 0:00:30]} 2. Nf3 {[%emt 0:00:00]} Nc6 {[%emt 0:00:30]} 3. Bc4 {[%emt 0:00:00]} Nf6 {[%emt 0:00:30]} 4. Ng5 {[%emt 0:00:30]} d5 {[%emt 0:00:30]} 5. exd5 {[%emt 0:00:30]} Na5 {[%emt 0:00:30]} 6. d3 {[%emt 0:00:00]} h6 {[%emt 0:00:30]} 7. Nf3 {[%emt 0:00:00]} e4 {[%emt 0:00:30]} 8. Qe2 {[%emt 0:00:30]} Nxc4 {[%emt 0:02:30]} 9. dxc4 {[%emt 0:00:30]} Bc5 {[%emt 0:00:30]} 10. c3 {[%emt 0:01:30]} Bg4 {[%emt 0:16:30]} 11. h3 {[%emt 0:01:30]} Bxf3 {[%emt 0:01:30]} 12. gxf3 {[%emt 0:00:00]} O-O {[%emt 0:00:30]} 13. f4 {[%emt 0:03:00]} b5 {[%emt 0:03:30]} 14. Be3 {[%emt 0:03:30]} Bxe3 {[%emt 0:02:30]} 15. fxe3 {[%emt 0:00:30]} bxc4 {[%emt 0:00:30]} 16. Nd2 {[%emt 0:01:30]} Nxd5 {[%emt 0:06:30]} 17. O-O-O {[%emt 0:00:30]} Qe7 {[%emt 0:01:30]} 18. Nxc4 {[%emt 0:03:30]} Nb6 {[%emt 0:00:30]} 19. Rd4 {[%emt 0:01:30]} c5 {[%emt 0:03:30]} 20. Rd2 {[%emt 0:03:30]} Qe6 {[%emt 0:03:30]} 21. Nxb6 {[%emt 0:03:30]} axb6 {[%emt 0:00:30]} 22. a3 {[%emt 0:00:00]} Rfd8 {[%emt 0:01:30]} 23. Qg2 {[%emt 0:04:00]} Rxd2 {[%emt 0:14:30]} 24. Qxd2 {[%emt 0:02:30]} Ra7 {[%emt 0:00:30]} 25. h4 {[%emt 0:09:30]} Rd7 {[%emt 0:03:30]} 26. Qg2 {[%emt 0:00:00]} h5 {[%emt 0:02:30]} 27. Rg1 {[%emt 0:02:00]} g6 {[%emt 0:01:30]} 28. Qg5 {[%emt 0:03:30]} Rd5 {[%emt 0:00:30]} 29. Qg2 {[%emt 0:01:30]} Rd3 {[%emt 0:01:30]} 30. Qe2 {[%emt 0:01:30]} Qh3 {[%emt 0:01:30]} 31. f5 {[%emt 0:00:30]} Qxf5 {[%emt 0:00:30]} 0-1

[Event "ESTCC 65 2019"]
[Site "Mali Losinj"]
[Date "2019.09.20"]
[Round "3.15"]
[White "Nielsen, Preben Lovgren"]
[Black "Bernhardsson, Sten"]
[Result "1/2-1/2"]
[ECO "B45"]
[WhiteElo "2007"]
[BlackElo "1956"]
[Annotator "NA"]
[PlyCount "62"]
[EventDate "2019.09.18"]
[EventType "team-tourn"]
[EventCountry "CRO"]
[SourceTitle "playchess.com"]
[Source "ChessBase"]
[SourceQuality "1"]
[WhiteTeam "Denmark"]
[BlackTeam "Sweden"]
[WhiteTeamCountry "DEN"]
[BlackTeamCountry "SWE"]
[TimeControl "40/5400+30:1800+30"]

1. e4 {[%emt 0:00:30]} c5 {[%emt 0:00:30]} 2. Nf3 {[%emt 0:00:00]} e6 {[%emt 0:00:00]} 3. d4 {[%emt 0:00:00]} cxd4 {[%emt 0:00:00]} 4. Nxd4 {[%emt 0:00:30]} Nc6 {[%emt 0:00:30]} 5. Nc3 {[%emt 0:00:00]} a6 {[%emt 0:00:30]} 6. Be2 {[%emt 0:00:00]} Nf6 {[%emt 0:00:30]} 7. O-O {[%emt 0:00:30]} Be7 {[%emt 0:01:30]} 8. Be3 {[%emt 0:00:30]} O-O {[%emt 0:02:30]} 9. a4 {[%emt 0:01:30]} d5 {[%emt 0:05:30]} 10. exd5 {[%emt 0:01:30]} Nxd5 {[%emt 0:04:30]} 11. Nxd5 {[%emt 0:01:30]} exd5 {[%emt 0:01:30]} 12. Qd2 {[%emt 0:05:30]} Bf6 {[%emt 0:17:30]} 13. Rad1 {[%emt 0:03:30]} Ne5 {[%emt 0:04:30]} 14. b3 {[%emt 0:04:30]} Ng4 {[%emt 0:04:30]} 15. Bf4 {[%emt 0:02:30]} Re8 {[%emt 0:01:30]} 16. Rfe1 {[%emt 0:01:30]} Bh4 {[%emt 0:21:30]} 17. Bg3 {[%emt 0:06:30]} Bxg3 {[%emt 0:00:30]} 18. hxg3 {[%emt 0:00:30]} Qf6 {[%emt 0:01:30]} 19. Qf4 {[%emt 0:06:30]} Qxf4 {[%emt 0:01:30]} 20. gxf4 {[%emt 0:00:30]} Bd7 {[%emt 0:02:30]} 21. Bf3 {[%emt 0:00:30]} Nf6 {[%emt 0:00:30]} 22. Re5 {[%emt 0:08:30]} Kf8 {[%emt 0:04:30]} 23. Rde1 {[%emt 0:02:30]} Rac8 {[%emt 0:01:30]} 24. Kf1 {[%emt 0:02:30]} Bc6 {[%emt 0:03:07]} 25. Rxe8+ {[%emt 0:03:30]} Rxe8 {[%emt 0:01:11]} 26. Rxe8+ {[%emt 0:03:30]} Kxe8 {[%emt 0:01:02]} 27. Ke2 {[%emt 0:01:30]} g6 {[%emt 0:01:13]} 28. Kd3 {[%emt 0:03:30]} Ke7 {[%emt 0:00:31]} 29. Nxc6+ {[%emt 0:03:30]} bxc6 {[%emt 0:00:08]} 30. Kd4 {[%emt 0:01:30]} Kd6 {[%emt 0:00:09]} 31. b4 {[%emt 0:00:30]} Ne8 {[%emt 0:03:14]} 1/2-1/2

[Event "ESTCC 65 2019"]
[Site "Mali Losinj"]
[Date "2019.09.20"]
[Round "3.16"]
[White "Nordenstrom, Sven"]
[Black "Fabrin, Morten"]
[Result "0-1"]
[ECO "A35"]
[WhiteElo "1874"]
[BlackElo "1998"]
[Annotator "NA"]
[PlyCount "90"]
[EventDate "2019.09.18"]
[EventType "team-tourn"]
[EventCountry "CRO"]
[SourceTitle "playchess.com"]
[Source "ChessBase"]
[SourceQuality "1"]
[WhiteTeam "Sweden"]
[BlackTeam "Denmark"]
[WhiteTeamCountry "SWE"]
[BlackTeamCountry "DEN"]
[TimeControl "40/5400+30:1800+30"]

1. d4 {[%emt 0:00:30]} c5 {[%emt 0:00:30]} 2. e3 {[%emt 0:00:30]} Nf6 {[%emt 0:00:30]} 3. Nf3 {[%emt 0:01:30]} g6 {[%emt 0:00:30]} 4. c4 {[%emt 0:01:30]} Bg7 {[%emt 0:00:30]} 5. Nc3 {[%emt 0:00:30]} O-O {[%emt 0:00:30]} 6. Be2 {[%emt 0:01:30]} cxd4 {[%emt 0:00:30]} 7. exd4 {[%emt 0:01:30]} d5 {[%emt 0:00:30]} 8. cxd5 {[%emt 0:00:00]} Nxd5 {[%emt 0:00:30]} 9. O-O {[%emt 0:01:00]} Nc6 {[%emt 0:00:30]} 10. h3 {[%emt 0:08:30]} a6 {[%emt 0:03:30]} 11. Be3 {[%emt 0:06:30]} b5 {[%emt 0:01:30]} 12. Qd2 {[%emt 0:05:30]} Re8 {[%emt 0:06:30]} 13. Rfd1 {[%emt 0:04:30]} Bf5 {[%emt 0:06:30]} 14. Rac1 {[%emt 0:04:30]} Rc8 {[%emt 0:02:30]} 15. Nh4 {[%emt 0:08:30]} Be6 {[%emt 0:02:30]} 16. Nxd5 {[%emt 0:03:30]} Bxd5 {[%emt 0:00:30]} 17. Bf3 {[%emt 0:00:00]} e6 {[%emt 0:02:30]} 18. Bxd5 {[%emt 0:01:00]} Qxd5 {[%emt 0:00:30]} 19. Nf3 {[%emt 0:00:00]} Red8 {[%emt 0:03:30]} 20. b3 {[%emt 0:01:00]} Qd7 {[%emt 0:03:30]} 21. Bg5 {[%emt 0:04:30]} f6 {[%emt 0:04:30]} 22. Be3 {[%emt 0:01:30]} Ne7 {[%emt 0:00:30]} 23. Rxc8 {[%emt 0:01:30]} Rxc8 {[%emt 0:00:30]} 24. Rc1 {[%emt 0:00:00]} Nd5 {[%emt 0:00:30]} 25. Kf1 {[%emt 0:05:00]} Kf7 {[%emt 0:02:30]} 26. Rxc8 {[%emt 0:04:30]} Qxc8 {[%emt 0:00:30]} 27. Qc1 {[%emt 0:00:30]} Qc3 {[%emt 0:02:30]} 28. Qxc3 {[%emt 0:04:30]} Nxc3 {[%emt 0:00:30]} 29. a3 {[%emt 0:00:00]} Bf8 {[%emt 0:00:30]} 30. b4 {[%emt 0:01:00]} Ke7 {[%emt 0:01:30]} 31. Bc1 {[%emt 0:00:30]} Kd6 {[%emt 0:01:30]} 32. Ke1 {[%emt 0:00:30]} Kd5 {[%emt 0:00:30]} 33. Bb2 {[%emt 0:01:30]} Ne4 {[%emt 0:00:30]} 34. Ke2 {[%emt 0:02:30]} Bh6 {[%emt 0:01:30]} 35. Ne1 {[%emt 0:00:30]} Kc4 {[%emt 0:07:30]} 36. Nd3 {[%emt 0:01:30]} Kb3 {[%emt 0:01:30]} 37. f4 {[%emt 0:00:30]} Kc2 {[%emt 0:03:30]} 38. Ke3 {[%emt 0:03:30]} Nd6 {[%emt 0:01:30]} 39. Bc1 {[%emt 0:01:30]} Nc4+ {[%emt 0:01:30]} 40. Ke2 {[%emt 0:00:30]} e5 {[%emt 0:01:30]} 41. d5 {[%emt 0:32:30]} e4 {[%emt 0:30:30]} 42. Nb2 {[%emt 0:00:30]} Kxc1 {[%emt 0:00:30]} 43. Nxc4 {[%emt 0:00:30]} bxc4 {[%emt 0:00:30]} 44. d6 {[%emt 0:00:30]} Bxf4 {[%emt 0:00:30]} 45. d7 {[%emt 0:00:00]} Bc7 {[%emt 0:00:30]} 0-1

[Event "ESTCC 65 2019"]
[Site "Mali Losinj"]
[Date "2019.09.20"]
[Round "3.17"]
[White "Beilfuss, Wilfried"]
[Black "James, Kevin"]
[Result "1-0"]
[ECO "D79"]
[WhiteElo "2192"]
[BlackElo "1959"]
[Annotator "NA"]
[PlyCount "79"]
[EventDate "2019.09.18"]
[EventType "team-tourn"]
[EventCountry "CRO"]
[SourceTitle "playchess.com"]
[Source "ChessBase"]
[SourceQuality "1"]
[WhiteTeam "Germany"]
[BlackTeam "Ireland"]
[WhiteTeamCountry "GER"]
[BlackTeamCountry "IRL"]
[TimeControl "40/5400+30:1800+30"]

1. g3 {[%emt 0:00:30]} c5 {[%emt 0:00:30]} 2. Nf3 {[%emt 0:01:30]} g6 {[%emt 0:00:30]} 3. c3 {[%emt 0:01:30]} Bg7 {[%emt 0:03:30]} 4. d4 {[%emt 0:00:30]} cxd4 {[%emt 0:04:30]} 5. cxd4 {[%emt 0:00:30]} d5 {[%emt 0:00:30]} 6. Nc3 {[%emt 0:00:30]} Nf6 {[%emt 0:00:00]} 7. Bg2 {[%emt 0:00:30]} Nc6 {[%emt 0:00:00]} 8. Ne5 {[%emt 0:02:30]} O-O {[%emt 0:01:30]} 9. O-O {[%emt 0:00:00]} e6 {[%emt 0:03:30]} 10. Bg5 {[%emt 0:04:00]} Qb6 {[%emt 0:00:30]} 11. Na4 {[%emt 0:05:30]} Qb4 {[%emt 0:06:30]} 12. a3 {[%emt 0:06:30]} Qd6 {[%emt 0:00:30]} 13. Nxc6 {[%emt 0:04:30]} Qxc6 {[%emt 0:05:30]} 14. Rc1 {[%emt 0:00:30]} Qb5 {[%emt 0:00:30]} 15. Rc5 {[%emt 0:05:30]} Qd7 {[%emt 0:01:30]} 16. Bf4 {[%emt 0:09:30]} Ne8 {[%emt 0:01:30]} 17. e3 {[%emt 0:04:30]} b6 {[%emt 0:03:30]} 18. Rc3 {[%emt 0:03:30]} Bb7 {[%emt 0:09:30]} 19. Qc2 {[%emt 0:00:30]} Rc8 {[%emt 0:01:30]} 20. Rxc8 {[%emt 0:01:30]} Qxc8 {[%emt 0:00:30]} 21. Rc1 {[%emt 0:04:30]} Nf6 {[%emt 0:07:30]} 22. Qxc8 {[%emt 0:13:30]} Rxc8 {[%emt 0:00:00]} 23. Rxc8+ {[%emt 0:00:30]} Bxc8 {[%emt 0:00:00]} 24. Bb8 {[%emt 0:00:00]} Bd7 {[%emt 0:02:30]} 25. b3 {[%emt 0:02:00]} Bxa4 {[%emt 0:00:30]} 26. bxa4 {[%emt 0:00:00]} a6 {[%emt 0:04:30]} 27. Bf1 {[%emt 0:00:00]} Kf8 {[%emt 0:08:30]} 28. Bxa6 {[%emt 0:00:30]} Ke8 {[%emt 0:00:30]} 29. Bc7 {[%emt 0:00:30]} Nd7 {[%emt 0:00:00]} 30. Bb5 {[%emt 0:00:30]} Bf8 {[%emt 0:00:00]} 31. Bxb6 {[%emt 0:00:30]} Bxa3 {[%emt 0:01:30]} 32. a5 {[%emt 0:00:30]} Ke7 {[%emt 0:00:00]} 33. Ba7 {[%emt 0:08:30]} Bd6 {[%emt 0:02:00]} 34. a6 {[%emt 0:00:00]} Kd8 {[%emt 0:02:30]} 35. Bxd7 {[%emt 0:02:00]} Kxd7 {[%emt 0:00:00]} 36. Bc5 {[%emt 0:00:54]} Bxc5 {[%emt 0:01:00]} 37. dxc5 {[%emt 0:00:06]} Kc7 {[%emt 0:00:30]} 38. Kf1 {[%emt 0:00:30]} e5 {[%emt 0:01:30]} 39. Ke2 {[%emt 0:00:30]} g5 {[%emt 0:04:30]} 40. g4 {[%emt 0:00:30]} 1-0

[Event "ESTCC 65 2019"]
[Site "Mali Losinj"]
[Date "2019.09.20"]
[Round "3.18"]
[White "Egan, Colm"]
[Black "Becker, Norbert"]
[Result "1/2-1/2"]
[ECO "A96"]
[WhiteElo "1710"]
[BlackElo "2131"]
[Annotator "NA"]
[PlyCount "63"]
[EventDate "2019.09.18"]
[EventType "team-tourn"]
[EventCountry "CRO"]
[SourceTitle "playchess.com"]
[Source "ChessBase"]
[SourceQuality "1"]
[WhiteTeam "Ireland"]
[BlackTeam "Germany"]
[WhiteTeamCountry "IRL"]
[BlackTeamCountry "GER"]
[TimeControl "40/5400+30:1800+30"]

1. Nf3 {[%emt 0:00:30]} e6 {[%emt 0:00:30]} 2. d4 {[%emt 0:00:00]} f5 {[%emt 0:00:00]} 3. g3 {[%emt 0:00:00]} Nf6 {[%emt 0:00:00]} 4. Bg2 {[%emt 0:00:30]} Be7 {[%emt 0:00:30]} 5. O-O {[%emt 0:00:30]} O-O {[%emt 0:00:30]} 6. c4 {[%emt 0:00:30]} d6 {[%emt 0:00:00]} 7. b3 {[%emt 0:04:30]} Qe8 {[%emt 0:03:00]} 8. Qc2 {[%emt 0:04:30]} Nc6 {[%emt 0:01:30]} 9. Bb2 {[%emt 0:01:30]} a5 {[%emt 0:06:30]} 10. a3 {[%emt 0:00:30]} Bd8 {[%emt 0:01:30]} 11. Nbd2 {[%emt 0:03:30]} e5 {[%emt 0:03:30]} 12. d5 {[%emt 0:09:30]} Nb8 {[%emt 0:08:30]} 13. e3 {[%emt 0:07:30]} Qh5 {[%emt 0:03:30]} 14. Bc3 {[%emt 0:06:30]} c5 {[%emt 0:07:30]} 15. dxc6 {[%emt 0:03:30]} Nxc6 {[%emt 0:00:30]} 16. b4 {[%emt 0:02:30]} e4 {[%emt 0:05:30]} 17. b5 {[%emt 0:02:30]} exf3 {[%emt 0:06:30]} 18. Bxf3 {[%emt 0:00:30]} Ng4 {[%emt 0:00:30]} 19. Bxg4 {[%emt 0:00:30]} Qxg4 {[%emt 0:04:30]} 20. bxc6 {[%emt 0:01:30]} bxc6 {[%emt 0:00:30]} 21. Rab1 {[%emt 0:06:30]} h5 {[%emt 0:05:30]} 22. Qd1 {[%emt 0:01:30]} Qxd1 {[%emt 0:14:30]} 23. Rfxd1 {[%emt 0:00:30]} Ba6 {[%emt 0:00:30]} 24. Rdc1 {[%emt 0:10:30]} Bc7 {[%emt 0:04:30]} 25. Kg2 {[%emt 0:02:30]} Rfb8 {[%emt 0:02:30]} 26. Kf3 {[%emt 0:00:30]} Kf7 {[%emt 0:01:33]} 27. h4 {[%emt 0:01:30]} g6 {[%emt 0:00:54]} 28. Ba1 {[%emt 0:01:30]} Ke6 {[%emt 0:01:54]} 29. e4 {[%emt 0:01:30]} Rxb1 {[%emt 0:03:08]} 30. exf5+ {[%emt 0:03:30]} Kxf5 {[%emt 0:00:26]} 31. Rxb1 {[%emt 0:00:30]} Rb8 {[%emt 0:03:44]} 32. Re1 {[%emt 0:05:07]} 1/2-1/2

[Event "ESTCC 65 2019"]
[Site "Mali Losinj"]
[Date "2019.09.20"]
[Round "3.19"]
[White "Mueller, Gerhard"]
[Black "Cassidy, Sydney"]
[Result "1-0"]
[ECO "B80"]
[WhiteElo "2104"]
[BlackElo "1599"]
[Annotator "NA"]
[PlyCount "72"]
[EventDate "2019.09.18"]
[EventType "team-tourn"]
[EventCountry "CRO"]
[SourceTitle "playchess.com"]
[Source "ChessBase"]
[SourceQuality "1"]
[WhiteTeam "Germany"]
[BlackTeam "Ireland"]
[WhiteTeamCountry "GER"]
[BlackTeamCountry "IRL"]
[TimeControl "40/5400+30:1800+30"]

1. e4 {[%emt 0:00:30]} c5 {[%emt 0:00:30]} 2. Nf3 {[%emt 0:00:00]} d6 {[%emt 0:00:30]} 3. d4 {[%emt 0:00:00]} cxd4 {[%emt 0:00:00]} 4. Nxd4 {[%emt 0:00:30]} Nf6 {[%emt 0:00:00]} 5. Nc3 {[%emt 0:00:00]} a6 {[%emt 0:00:30]} 6. f3 {[%emt 0:00:00]} e6 {[%emt 0:00:30]} 7. Be3 {[%emt 0:00:30]} Be7 {[%emt 0:01:30]} 8. Qd2 {[%emt 0:00:30]} Bd7 {[%emt 0:01:30]} 9. O-O-O {[%emt 0:01:30]} Nc6 {[%emt 0:03:30]} 10. g4 {[%emt 0:01:30]} Nxd4 {[%emt 0:07:30]} 11. Qxd4 {[%emt 0:00:30]} O-O {[%emt 0:02:30]} 12. h4 {[%emt 0:04:30]} Bc6 {[%emt 0:06:30]} 13. h5 {[%emt 0:04:30]} Ne8 {[%emt 0:06:30]} 14. f4 {[%emt 0:01:30]} h6 {[%emt 0:13:30]} 15. Qd2 {[%emt 0:10:30]} b5 {[%emt 0:01:30]} 16. Bd3 {[%emt 0:03:30]} b4 {[%emt 0:10:30]} 17. Ne2 {[%emt 0:00:30]} Qa5 {[%emt 0:01:30]} 18. Kb1 {[%emt 0:00:30]} Nf6 {[%emt 0:00:30]} 19. g5 {[%emt 0:08:30]} hxg5 {[%emt 0:02:30]} 20. fxg5 {[%emt 0:02:30]} Nxe4 {[%emt 0:00:30]} 21. Bxe4 {[%emt 0:00:30]} Bxe4 {[%emt 0:00:30]} 22. Rh4 {[%emt 0:00:30]} Bd5 {[%emt 0:04:30]} 23. b3 {[%emt 0:02:30]} Bf3 {[%emt 0:05:30]} 24. Re1 {[%emt 0:06:30]} Bxe2 {[%emt 0:05:30]} 25. Rxe2 {[%emt 0:00:00]} Rab8 {[%emt 0:00:30]} 26. Rg4 {[%emt 0:01:00]} Rb5 {[%emt 0:02:30]} 27. Reg2 {[%emt 0:08:30]} Rd5 {[%emt 0:03:11]} 28. Qe1 {[%emt 0:13:30]} Rb8 {[%emt 0:05:19]} 29. Bd4 {[%emt 0:06:30]} Bxg5 {[%emt 0:06:47]} 30. Qg1 {[%emt 0:01:30]} Rbb5 {[%emt 0:02:31]} 31. Qh1 {[%emt 0:04:40]} Rf5 {[%emt 0:00:44]} 32. Rg1 {[%emt 0:00:45]} f6 {[%emt 0:03:04]} 33. h6 {[%emt 0:01:05]} Kh7 {[%emt 0:00:33]} 34. hxg7+ {[%emt 0:00:34]} Kxg7 {[%emt 0:00:10]} 35. Rh4 {[%emt 0:00:21]} Kf7 {[%emt 0:02:14]} 36. Rh7+ {[%emt 0:01:38]} Ke8 {[%emt 0:00:11]} 1-0